fUSD/lending_fUSD_20250826
["ID","MTS","AMOUNT","RATE_DAILY","PERIOD"]
[381497274,1756234262532,-163.124851,0.000249,7]
[381497275,1756234262542,-492.45,0.000249,7]
[381497276,1756234262551,-694.195863,0.000249,7]
[381497277,1756234262562,-304.087752,0.000249,7]
[381497278,1756234262572,-304.087752,0.000249,7]
[381497279,1756234262583,-694.195863,0.000249,7]
[381497280,1756234262594,-694.195863,0.000249,7]
[381497281,1756234262605,-304.087752,0.000249,7]
[381497282,1756234262615,-318.427936,0.000249,7]
[381497283,1756234262626,-304.087752,0.000249,7]
[381497284,1756234262636,-318.427936,0.000249,7]
[381497285,1756234262646,-224.588692,0.000249,7]
[381497286,1756234262656,-318.427936,0.000249,7]
[381497287,1756234262667,-224.588692,0.000249,7]
[381497288,1756234262677,-318.427936,0.000249,7]
[381497289,1756234262687,-192.992108,0.000249,7]
[381497290,1756234262697,-192.992108,0.000249,7]
[381497291,1756234262708,-192.992108,0.000249,7]
[381497292,1756234262721,-151.0,0.000249,7]
[381497293,1756234262732,-192.992108,0.000249,7]
[381497294,1756234262743,-224.588692,0.000249,7]
[381497295,1756234262753,-224.588692,0.000249,7]
[381497296,1756234262763,-223.440588,0.000249,7]
[381497297,1756234262774,-151.0,0.000249,7]
[381497298,1756234262784,-151.0,0.000249,7]
[381497299,1756234262794,-192.823931,0.000249,7]
[381497300,1756234262808,-450.510635,0.000249,7]
[381497301,1756234262819,-151.0,0.000249,7]
[381497302,1756234262830,-151.0,0.000249,7]
[381497303,1756234262842,-450.510635,0.000249,7]
[381497304,1756234262864,-153.157443,0.000249,7]
[381497305,1756234262882,-450.510635,0.000249,7]
[381497306,1756234262893,-1074.983575,0.000249,7]
[381497307,1756234262903,-151.0,0.000249,7]
[381497308,1756234262913,-222.560891,0.000249,7]
[381497309,1756234262924,-450.510635,0.000249,7]
[381497310,1756234262934,-1074.983575,0.000249,7]
[381497311,1756234262945,-222.560891,0.000249,7]
[381497312,1756234262956,-1074.983575,0.000249,7]
[381497313,1756234262966,-222.560891,0.000249,7]
[381497314,1756234262977,-1074.983575,0.000249,7]
[381497315,1756234262991,-151.0,0.000249,7]
[381497316,1756234263001,-222.560891,0.000249,7]
[381497317,1756234263012,-151.0,0.000249,7]
[381497318,1756234263022,-151.0,0.000249,7]
[381497319,1756234263032,-254.76279,0.000249,7]
[381497320,1756234263043,-151.0,0.000249,7]
[381497321,1756234263054,-151.0,0.000249,7]
[381497322,1756234263064,-219.632907,0.000249,7]
[381497323,1756234263075,-219.632907,0.000249,7]
[381497324,1756234263085,-1440.116939,0.000249,7]
[381497325,1756234263096,-219.632907,0.000249,7]
[381497326,1756234263107,-1440.116939,0.000249,7]
[381497327,1756234263119,-219.632907,0.000249,7]
[381497328,1756234263130,-1440.116939,0.000249,7]
[381497329,1756234263141,-1440.116939,0.000249,7]
[381497330,1756234263152,-151.0,0.000249,7]
[381497331,1756234263163,-503.842562,0.000249,7]
[381497332,1756234263174,-503.842562,0.000249,7]
[381497333,1756234263652,-503.842562,0.000249,7]
[381497334,1756234263667,-151.0,0.000249,7]
[381497335,1756234263677,-503.842562,0.000249,7]
[381497336,1756234263686,-151.0,0.000249,7]
[381497337,1756234263696,-151.0,0.000249,7]
[381497338,1756234263706,-151.0,0.000249,7]
[381497339,1756234263716,-151.0,0.000249,7]
[381497340,1756234263731,-151.0,0.000249,7]
[381497341,1756234263742,-1264.571645,0.000249,7]
[381497342,1756234263751,-1264.571645,0.000249,7]
[381497343,1756234263762,-151.0,0.000249,7]
[381497344,1756234263772,-1264.571645,0.000249,7]
[381497345,1756234263781,-1264.571645,0.000249,7]
[381497346,1756234263791,-151.0,0.000249,2]
[381497347,1756234263801,-443.51581,0.000249,7]
[381497348,1756234263811,-443.51581,0.000249,7]
[381497349,1756234263821,-443.51581,0.000249,7]
[381497350,1756234263830,-293.796465,0.000249,7]
[381497351,1756234263840,-443.51581,0.000249,7]
[381497352,1756234263850,-293.796465,0.000249,7]
[381497353,1756234263860,-293.796465,0.000249,7]
[381497354,1756234263869,-293.796465,0.000249,7]
[381497355,1756234263878,-21858.52893652,0.000249,2]
[381497356,1756234263889,-613691.732096,0.000249,2]
[381497357,1756234263898,-1105.580744,0.000249,7]
[381497358,1756234263908,-1105.580744,0.000249,7]
[381497359,1756234263917,-1105.580744,0.000249,7]
[381497360,1756234263927,-301.737078,0.000249,7]
[381497361,1756234263937,-1105.580744,0.000249,7]
[381497362,1756234263946,-301.737078,0.000249,7]
[381497363,1756234263955,-301.737078,0.000249,7]
[381497364,1756234263965,-151.0,0.000249,7]
[381497365,1756234263975,-301.737078,0.000249,7]
[381497366,1756234263985,-151.0,0.000249,7]
[381497367,1756234263995,-1905.919141,0.000249,7]
[381497368,1756234264004,-535.867484,0.000249,7]
[381497369,1756234264013,-1905.919141,0.000249,7]
[381497370,1756234264024,-1012.644171,0.000249,7]
[381497371,1756234264033,-1905.919141,0.000249,7]
[381497372,1756234264044,-535.867484,0.000249,7]
[381497373,1756234264054,-160.045092,0.000249,7]
[381497374,1756234264063,-1012.644171,0.000249,7]
[381497375,1756234264073,-1905.919141,0.000249,7]
[381497376,1756234264082,-535.867484,0.000249,7]
[381497377,1756234264092,-160.045092,0.000249,7]
[381497378,1756234264102,-1012.644171,0.000249,7]
[381497379,1756234264112,-151.0,0.000249,7]
[381497380,1756234264122,-376.020996,0.000249,7]
[381497381,1756234264132,-535.867484,0.000249,7]
[381497382,1756234264142,-160.045092,0.000249,7]
[381497383,1756234264151,-1012.644171,0.000249,7]
[381497384,1756234264161,-151.0,0.000249,7]
[381497385,1756234264171,-151.0,0.000249,7]
[381497386,1756234264180,-508.540523,0.000249,7]
[381497387,1756234264190,-376.020996,0.000249,7]
[381497388,1756234264201,-173.124936,0.000249,7]
[381497389,1756234264211,-160.045092,0.000249,7]
[381497390,1756234264220,-151.0,0.000249,7]
[381497391,1756234264229,-376.020996,0.000249,7]
[381497392,1756234264239,-508.540523,0.000249,7]
[381497393,1756234264248,-173.124936,0.000249,7]
[381497394,1756234264257,-376.020996,0.000249,7]
[381497395,1756234264266,-173.124936,0.000249,7]
[381497396,1756234264276,-508.540523,0.000249,7]
[381497397,1756234264285,-157.800588,0.000249,7]
[381497398,1756234264295,-151.0,0.000249,7]
[381497399,1756234264304,-508.540523,0.000249,7]
[381497400,1756234264313,-173.124936,0.000249,7]
[381497401,1756234264323,-304.028626,0.000249,7]
[381497402,1756234264333,-157.800588,0.000249,7]
[381497403,1756234264343,-151.0,0.000249,7]
[381497404,1756234264354,-304.028626,0.000249,7]
[381497405,1756234264364,-157.800588,0.000249,7]
[381497406,1756234264374,-666.651429,0.000249,7]
[381497407,1756234264385,-151.0,0.000249,7]
[381497408,1756234264394,-304.028626,0.000249,7]
[381497409,1756234264403,-666.651429,0.000249,7]
[381497410,1756234264413,-157.800588,0.000249,7]
[381497411,1756234264423,-151.0,0.000249,7]
[381497412,1756234264432,-304.028626,0.000249,7]
[381497413,1756234264442,-269.206783,0.000249,7]
[381497414,1756234264451,-666.651429,0.000249,7]
[381497415,1756234264461,-151.0,0.000249,7]
[381497416,1756234264470,-151.0,0.000249,7]
[381497417,1756234264479,-666.651429,0.000249,7]
[381497418,1756234264489,-269.206783,0.000249,7]
[381497419,1756234264499,-155.873115,0.000249,7]
[381497420,1756234264512,-269.206783,0.000249,7]
[381497421,1756234264521,-269.206783,0.000249,7]
[381497422,1756234264530,-166.242368,0.000249,7]
[381497423,1756234264542,-257.387354,0.000249,7]
[381497424,1756234264551,-166.242368,0.000249,7]
[381497425,1756234264560,-257.387354,0.000249,7]
[381497426,1756234264570,-166.242368,0.000249,7]
[381497427,1756234264579,-257.387354,0.000249,7]
[381497428,1756234264588,-166.242368,0.000249,7]
[381497429,1756234264600,-864.305514,0.000249,7]
[381497430,1756234264609,-151.0,0.000249,7]
[381497431,1756234264619,-864.305514,0.000249,7]
[381497432,1756234264628,-195.406268,0.000249,7]
[381497433,1756234264637,-864.305514,0.000249,7]
[381497434,1756234264648,-195.406268,0.000249,7]
[381497435,1756234264657,-151.0,0.000249,7]
[381497436,1756234264666,-195.406268,0.000249,7]
[381497437,1756234264676,-864.305514,0.000249,7]
[381497438,1756234264685,-257.387354,0.000249,7]
[381497439,1756234264694,-151.0,0.000249,7]
[381497440,1756234264704,-195.406268,0.000249,7]
[381497441,1756234264714,-151.0,0.000249,7]
[381497442,1756234264730,-151.0,0.000249,7]
[381497443,1756234264740,-8212.703629,0.000249,7]
[381497444,1756234264750,-8212.703629,0.000249,7]
[381497445,1756234264762,-287.706716,0.000249,7]
[381497446,1756234264773,-425.180795,0.000249,7]
[381497447,1756234264783,-774.218462,0.000249,7]
[381497448,1756234264795,-8212.703629,0.000249,7]
[381497449,1756234264812,-151.0,0.000249,7]
[381497450,1756234264822,-425.180795,0.000249,7]
[381497451,1756234264832,-774.218462,0.000249,7]
[381497452,1756234264842,-1918.67873,0.000249,7]
[381497453,1756234264855,-8212.703629,0.000249,7]
[381497454,1756234264865,-774.218462,0.000249,7]
[381497455,1756234264880,-1918.67873,0.000249,7]
[381497456,1756234264890,-425.180795,0.000249,7]
[381497457,1756234264902,-1918.67873,0.000249,7]
[381497458,1756234264912,-554.651578,0.000249,7]
[381497459,1756234264922,-403.039769,0.000249,7]
[381497460,1756234264931,-425.180795,0.000249,7]
[381497461,1756234264941,-774.218462,0.000249,7]
[381497462,1756234264951,-151.0,0.000249,7]
[381497463,1756234264960,-554.651578,0.000249,7]
[381497464,1756234264970,-1918.67873,0.000249,7]
[381497465,1756234264979,-403.039769,0.000249,7]
[381497466,1756234264989,-151.0,0.000249,7]
[381497467,1756234264999,-554.651578,0.000249,7]
[381497468,1756234265009,-403.039769,0.000249,7]
[381497469,1756234265018,-197.634869,0.000249,7]
[381497470,1756234265028,-151.0,0.000249,7]
[381497471,1756234265037,-554.651578,0.000249,7]
[381497472,1756234265047,-403.039769,0.000249,7]
[381497473,1756234265056,-197.634869,0.000249,7]
[381497474,1756234265066,-3216.825123,0.000249,7]
[381497475,1756234265075,-600.0,0.00024904,2]
[381497476,1756234265085,-200.0,0.0002491,7]
[381497477,1756234265094,-373.07297731,0.00024914,2]
[381497478,1756234265106,-309.29654756,0.00024914,2]
[381497479,1756234265116,-409.0,0.00024932,7]
[381497480,1756234265126,-503.0,0.00024932,7]
[381497481,1756234265136,-1520.02,0.00024957,2]
[381497482,1756234265146,-1410.0,0.00024983,2]
[381497483,1756234265155,-4524.00000005,0.00025,2]
[381497484,1756234265166,-2017.08,0.00025,7]
[381497485,1756234265175,-151.0,0.00025,7]
[381497486,1756234265185,-151.0,0.00025,7]
[381497487,1756234265194,-151.0,0.00025,7]
[381497488,1756234265204,-151.0,0.00025,7]
[381497489,1756234265213,-151.0,0.00025,7]
[381497490,1756234265224,-151.0,0.00025,7]
[381497491,1756234265233,-151.0,0.00025,7]
[381497492,1756234265243,-151.0,0.00025,7]
[381497493,1756234265253,-151.0,0.00025,7]
[381497494,1756234265262,-151.0,0.00025,7]
[381497495,1756234265273,-251.103413,0.00025,7]
[381497496,1756234265282,-151.0,0.00025,7]
[381497497,1756234265292,-151.0,0.00025,7]
[381497498,1756234265302,-151.0,0.00025,7]
[381497499,1756234265311,-151.0,0.00025,7]
[381497500,1756234265321,-151.0,0.00025,7]
[381497501,1756234265331,-151.0,0.00025,7]
[381497502,1756234265340,-151.0,0.00025,7]
[381497503,1756234265351,-151.0,0.00025,7]
[381497504,1756234265361,-151.0,0.00025,7]
[381497505,1756234265371,-151.0,0.00025,7]
[381497506,1756234265381,-151.0,0.00025,7]
[381497507,1756234265391,-151.0,0.00025,7]
[381497508,1756234265401,-151.0,0.00025,7]
[381497509,1756234265411,-151.0,0.00025,7]
[381497510,1756234265420,-4034.17,0.00025,7]
[381497511,1756234265430,-151.0,0.00025,7]
[381497512,1756234265440,-151.0,0.00025,7]
[381497513,1756234265450,-151.878341,0.00025,7]
[381497514,1756234265460,-409.0,0.00025,7]
[381497515,1756234265470,-503.0,0.00025,7]
[381497516,1756234265480,-4000.0,0.00025,4]
[381497517,1756234265490,-161.0,0.00025,7]
[381497518,1756234265501,-500.0,0.00025073,2]
[381497519,1756234265512,-500.0,0.00025092,2]
[381497520,1756234265523,-500.0,0.00025092,2]
[381497521,1756234265532,-500.0,0.00025092,2]
[381497522,1756234265542,-501.90964086,0.00025092,2]
[381497523,1756234265551,-460.2017041,0.00025092,2]
[381497524,1756234265560,-151.0,0.000251,7]
[381497525,1756234265570,-151.0,0.000251,7]
[381497526,1756234265579,-151.0,0.000251,7]
[381497527,1756234265588,-394.74764,0.000251,7]
[381497528,1756234265600,-394.74764,0.000251,7]
[381497529,1756234265609,-394.74764,0.000251,7]
[381497530,1756234265619,-394.74764,0.000251,7]
[381497531,1756234265628,-151.0,0.000251,7]
[381497532,1756234265638,-151.0,0.000251,7]
[381497533,1756234265647,-151.0,0.000251,7]
[381497534,1756234265657,-200.0,0.000251,7]
[381497535,1756234265667,-150.0,0.00025167,2]
[381497536,1756234265676,-409.0,0.00025205,7]
[381497537,1756234265686,-503.0,0.00025205,7]
[381497538,1756234265695,-225.18697532,0.00025206,2]
[381497539,1756234265706,-160.98716023,0.00025233,2]
[381497540,1756234265716,-500.0,0.00025233,2]
[381497541,1756234265733,-500.0,0.00025233,2]
[381497542,1756234265742,-500.0,0.00025233,2]
[381497543,1756234265752,-500.0,0.00025233,2]
[381497544,1756234265763,-1000.0,0.00025242,2]
[381497545,1756234265772,-1000.0,0.00025242,2]
[381497546,1756234265782,-1000.0,0.00025242,2]
[381497547,1756234265791,-1000.0,0.00025242,2]
[381497548,1756234265800,-1000.0,0.00025242,2]
[381497549,1756234265810,-500.8327188,0.00025242,2]
[381497550,1756234265820,-1000.0,0.00025242,2]
[381497551,1756234265829,-1000.0,0.00025242,2]
[381497552,1756234265838,-1000.0,0.00025242,2]
[381497553,1756234265849,-1000.0,0.00025242,2]
[381497554,1756234265859,-1000.0,0.00025242,2]
[381497555,1756234265867,-1000.0,0.00025242,2]
[381497556,1756234265876,-150.0,0.00025245,2]
[381497557,1756234265886,-241.57,0.00025323,2]
[381497558,1756234265895,-447.08,0.00025342,2]
[381497559,1756234265904,-1697.0,0.00025347,2]
[381497560,1756234265913,-255.66,0.00025352,2]
[381497561,1756234265923,-716.0,0.0002537,2]
[381497562,1756234265932,-150.0,0.00025373,4]
[381497563,1756234265941,-1000.0,0.00025376,2]
[381497564,1756234265950,-1400.0,0.00025377,2]
[381497565,1756234265959,-16988.1036592,0.00025378,7]
[381497566,1756234265969,-1000.0,0.00025415,2]
[381497567,1756234265979,-1000.0,0.00025428,2]
[381497568,1756234265989,-1002.88809515,0.00025428,2]
[381497569,1756234265999,-600.0,0.00025452,2]
[381497570,1756234266008,-255.66,0.00025458,2]
[381497571,1756234266144,-409.0,0.00025479,7]
[381497572,1756234266156,-503.0,0.00025479,7]
[381497573,1756234266168,-1548.22,0.000255,7]
[381497574,1756234266178,-36013.6,0.000255,2]
[381497575,1756234266187,-5547.38,0.000255,7]
[381497576,1756234266196,-77452.36,0.000255,7]
[381497577,1756234266205,-616.48,0.00025505,2]
[381497578,1756234266215,-368.0,0.00025542,2]
[381497579,1756234266224,-151.86,0.00025597,2]
[381497580,1756234266233,-21858.52893623,0.00025597,3]
[381497581,1756234266242,-679.05146911,0.00025621,2]
[381497582,1756234266252,-1000.0,0.00025627,2]
[381497583,1756234266260,-1000.0,0.0002564,2]
[381497584,1756234266270,-1000.0,0.0002564,2]
[381497585,1756234266279,-641.19074706,0.0002564,2]
[381497586,1756234266289,-368.0,0.00025671,7]
[381497587,1756234266298,-500.0,0.000257,2]
[381497588,1756234266307,-368.0,0.00025708,7]
[381497589,1756234266317,-151.0,0.00025753,7]
[381497590,1756234266326,-293.910237,0.00025753,7]
[381497591,1756234266335,-218.498594,0.00025753,7]
[381497592,1756234266344,-218.498594,0.00025753,7]
[381497593,1756234266355,-218.498594,0.00025753,7]
[381497594,1756234266364,-218.498594,0.00025753,7]
[381497595,1756234266373,-151.0,0.00025753,7]
[381497596,1756234266382,-151.0,0.00025753,7]
[381497597,1756234266391,-233.178734,0.00025753,7]
[381497598,1756234266401,-233.178734,0.00025753,7]
[381497599,1756234266410,-233.178734,0.00025753,7]
[381497600,1756234266419,-233.178734,0.00025753,7]
[381497601,1756234266428,-151.0,0.00025753,7]
[381497602,1756234266438,-211.320708,0.00025753,7]
[381497603,1756234266447,-409.0,0.00025753,7]
[381497604,1756234266458,-503.0,0.00025753,7]
[381497605,1756234266468,-233.51889341,0.00025754,2]
[381497606,1756234266477,-509.0,0.00025767,2]
[381497607,1756234266487,-1000.0,0.00025781,2]
[381497608,1756234266497,-1000.0,0.00025781,2]
[381497609,1756234266507,-1000.0,0.00025781,2]
[381497610,1756234266517,-1000.0,0.00025781,2]
[381497611,1756234266527,-1106.40031721,0.0002579,2]
[381497612,1756234266537,-1500.0,0.0002579,2]
[381497613,1756234266547,-1500.0,0.0002579,2]
[381497614,1756234266555,-1500.0,0.0002579,2]
[381497615,1756234266565,-1500.0,0.0002579,2]
[381497616,1756234266574,-1500.0,0.0002579,2]
[381497617,1756234266583,-1500.0,0.0002579,2]
[381497618,1756234266592,-1500.0,0.0002579,2]
[381497619,1756234266602,-1500.0,0.0002579,2]
[381497620,1756234266611,-650.95868312,0.0002579,2]
[381497621,1756234266620,-917.10743411,0.0002579,2]
[381497622,1756234266629,-200.0,0.0002581,7]
[381497623,1756234266638,-637.0,0.00025868,2]
[381497624,1756234266647,-409.0,0.0002589,7]
[381497625,1756234266656,-503.0,0.0002589,7]
[381497626,1756234266665,-200.0,0.000259,9]
[381497627,1756234266674,-1800.0,0.00025925,2]
[381497628,1756234266683,-3000.0,0.00025925,2]
[381497629,1756234266692,-368.0,0.00025963,2]
[381497630,1756234266701,-1500.0,0.00025963,2]
[381497631,1756234266711,-1002.07266514,0.00025976,2]
[381497632,1756234266723,-248857.0001035,0.00026,3]
[381497633,1756234267624,-3216.825123,0.0002192,7]
[381497634,1756234267634,-78851.17442566,0.00026,3]
[381497635,1756234267660,-197.634869,0.00023562,7]
[381497636,1756234267669,-916.12652855,0.00026,3]
[381497637,1756234267704,-147720.96336557,0.00026,3]
[381497638,1756234268755,-151.0,0.0002192,7]
[381497639,1756234268766,-197.634869,0.0002192,7]
[381497640,1756234268776,-3216.825123,0.0002192,7]
[381497641,1756234268787,-151.0,0.0002192,7]
[381497642,1756234268797,-3216.825123,0.00023562,7]
[381497643,1756234268809,-151.0,0.00023562,7]
[381497644,1756234268818,-197.634869,0.00023562,7]
[381497645,1756234268827,-3216.825123,0.00023562,7]
[381497646,1756234268837,-197.634869,0.000248,7]
[381497647,1756234268848,-3216.825123,0.000248,7]
[381497648,1756234268858,-151.0,0.000248,7]
[381497649,1756234268867,-197.634869,0.000248,7]
[381497650,1756234268877,-197.634869,0.000249,7]
[381497651,1756234268886,-2579.55720699,0.000249,7]
[381497652,1756234268966,-337.88,0.000248,7]
[381497653,1756234270603,-151.0,0.0002192,7]
[381497654,1756234270615,-3216.825123,0.0002192,7]
[381497655,1756234270625,-151.0,0.0002192,7]
[381497656,1756234270634,-151.0,0.00023562,7]
[381497657,1756234270643,-151.0,0.00023562,7]
[381497658,1756234270652,-3216.825123,0.00023562,7]
[381497659,1756234270661,-600.0,0.00023716,2]
[381497660,1756234270670,-600.0,0.00023716,2]
[381497661,1756234270679,-367.047,0.00024048,2]
[381497662,1756234270689,-2878.945123,0.000248,7]
[381497663,1756234270699,-151.0,0.000248,7]
[381497664,1756234270709,-297.202624,0.000248,7]
[381497665,1756234270721,-2879.62044577,0.000248,7]
[381497666,1756234270747,-337.20467723,0.000248,7]
[381497667,1756234270769,-237.23489293,0.000249,7]
[381497668,1756234270898,-400.03302308,0.000249,7]
[381497669,1756234270907,-151.0,0.000249,7]
[381497670,1756234270916,-197.634869,0.000249,7]
[381497671,1756234270926,-3216.825123,0.000249,7]
[381497672,1756234270935,-151.0,0.000249,7]
[381497673,1756234270945,-3216.825123,0.000249,7]
[381497674,1756234270954,-2017.08,0.00026,7]
[381497675,1756234270964,-151.0,0.00026,7]
[381497676,1756234270973,-151.0,0.00026,7]
[381497677,1756234270982,-151.0,0.00026,7]
[381497678,1756234270991,-151.0,0.00026,7]
[381497679,1756234271000,-844.63891918,0.00026,3]
[381497680,1756234271009,-490.731049,0.00026,7]
[381497681,1756234271019,-490.731049,0.00026,7]
[381497682,1756234271028,-490.731049,0.00026,7]
[381497683,1756234271037,-331.79407784,0.00026,7]
[381497684,1756234271115,-158.93697116,0.00026,7]
[381497685,1756234271125,-151.0,0.00026,7]
[381497686,1756234271134,-151.0,0.00026,7]
[381497687,1756234271144,-151.0,0.00026,7]
[381497688,1756234271153,-151.0,0.00026,7]
[381497689,1756234271163,-151.0,0.00026,7]
[381497690,1756234271172,-151.0,0.00026,7]
[381497691,1756234271182,-151.0,0.00026,7]
[381497692,1756234271191,-151.0,0.00026,7]
[381497693,1756234271200,-151.0,0.00026,7]
[381497694,1756234271209,-151.0,0.00026,7]
[381497695,1756234271219,-151.0,0.00026,7]
[381497696,1756234271228,-151.0,0.00026,7]
[381497697,1756234271237,-151.0,0.00026,7]
[381497698,1756234271246,-151.0,0.00026,7]
[381497699,1756234271255,-1532.79411151,0.00026,7]
[381497700,1756234271267,-2501.37588849,0.00026,7]
[381497701,1756234271276,-151.0,0.00026,7]
[381497702,1756234271285,-151.0,0.00026,7]
[381497703,1756234271295,-151.220792,0.00026,7]
[381497704,1756234271305,-151.0,0.00026,7]
[381497705,1756234271314,-151.0,0.00026,7]
[381497706,1756234271323,-151.0,0.00026,7]
[381497707,1756234271333,-151.0,0.00026,7]
[381497708,1756234271342,-151.0,0.00026,7]
[381497709,1756234271352,-151.0,0.00026,7]
[381497710,1756234271362,-230.337002,0.00026,7]
[381497711,1756234271371,-179.539765,0.00026,7]
[381497712,1756234271380,-151.0,0.00026,7]
[381497713,1756234271390,-151.0,0.00026,7]
[381497714,1756234271399,-259.814887,0.00026,7]
[381497715,1756234271408,-151.0,0.00026,7]
[381497716,1756234271417,-151.0,0.00026,7]
[381497717,1756234271426,-243.41186551,0.00026,7]
[381497718,1756234271438,-16.40302149,0.00026,7]
[381497719,1756234271447,-151.0,0.00026,7]
[381497720,1756234271456,-259.814887,0.00026,7]
[381497721,1756234271465,-259.814887,0.00026,7]
[381497722,1756234271474,-179.539765,0.00026,7]
[381497723,1756234271484,-179.539765,0.00026,7]
[381497724,1756234271493,-179.539765,0.00026,7]
[381497725,1756234271502,-151.0,0.00026,7]
[381497726,1756234271511,-1449.758194,0.00026,7]
[381497727,1756234271520,-1449.758194,0.00026,7]
[381497728,1756234271529,-1449.758194,0.00026,7]
[381497729,1756234271539,-1449.758194,0.00026,7]
[381497730,1756234271547,-552.98179,0.00026,7]
[381497731,1756234271556,-552.98179,0.00026,7]
[381497732,1756234271565,-552.98179,0.00026,7]
[381497733,1756234271574,-552.98179,0.00026,7]
[381497734,1756234271583,-77.38800351,0.00026,7]
[381497735,1756234271595,-73.61199649,0.00026,7]
[381497736,1756234271604,-151.0,0.00026,7]
[381497737,1756234271614,-162.168719,0.00026,7]
[381497738,1756234271623,-652.82017855,0.00026,7]
[381497739,1756234271744,-600.0,0.00023716,2]
[381497740,1756234271754,-600.0,0.00023716,2]
[381497741,1756234271764,-1043.60575745,0.00026,7]
[381497742,1756234271774,-208.61153468,0.00026,7]
[381497759,1756234641414,490.0,0.00027387,120]
[381497760,1756234651508,150.0,0.00015,2]
[381497785,1756235094148,245.99,0.00013699,2]
[381497807,1756235242569,490.0,0.00027387,120]
[381497822,1756235432346,-2843.29957411,0.000179,2]
[381497823,1756235432355,-1000.0,0.00017958,3]
[381497824,1756235432364,-204.0,0.00017958,2]
[381497825,1756235432373,-150.0,0.00017958,2]
[381497826,1756235432382,-250.0,0.00017958,2]
[381497827,1756235432391,-300.0,0.00018015,2]
[381497828,1756235432401,-300.0,0.00018015,2]
[381497829,1756235432410,-1200.0,0.00018015,2]
[381497830,1756235432419,-3285.78030164,0.00018016,2]
[381497831,1756235432431,-2271.41761276,0.00018016,2]
[381497832,1756235432446,-2646.70483916,0.00018016,2]
[381497833,1756235432524,-557.27465112,0.00018016,2]
[381497834,1756235432557,-600.0,0.00018016,2]
[381497835,1756235432596,-484.49668922,0.00018016,2]
[381497842,1756235432686,-253.52292797,0.00018016,2]
[381497845,1756235432695,-150.0,0.00018116,2]
[381497848,1756235432704,-153.0,0.00019021,2]
[381497851,1756235432713,-153.0,0.00019021,2]
[381497854,1756235432723,-87.31239549,0.00019021,2]
[381497861,1756235438172,-65.68760451,0.00019021,2]
[381497862,1756235438183,-153.0,0.00019021,2]
[381497863,1756235438192,-153.0,0.00019021,2]
[381497864,1756235438203,-153.0,0.00019021,2]
[381497865,1756235438213,-153.0,0.00019021,2]
[381497866,1756235438224,-153.0,0.00019021,2]
[381497867,1756235438234,-153.0,0.00019021,2]
[381497868,1756235438244,-37.44463414,0.00019021,2]